[Event "Srdja Dragasevic Memorial-A 2024"]
[Site "Cetinje"]
[Date "2024.06.23"]
[Round "3.6"]
[White "Tadic, Stefan"]
[Black "Atakisi, Umut"]
[Result "1-0"]
[ECO "B45"]
[WhiteElo "2421"]
[BlackElo "2335"]
[Annotator "RC"]
[PlyCount "89"]
[EventDate "2024.06.23"]
[EventType "swiss"]
[EventCountry "MNE"]
[SourceTitle "playchess.com"]
[Source "ChessBase"]
[SourceQuality "1"]
[TimeControl "40/5400+30:1800+30"]

1. e4 {[%emt 0:00:03]} c5 {[%emt 0:15:14]} 2. Nf3 {[%emt 0:00:06]} e6 {[%emt 0:00:04]} 3. d4 {[%emt 0:00:04]} cxd4 {[%emt 0:00:09]} 4. Nxd4 {[%emt 0:00:05]} Nf6 {[%emt 0:00:05]} 5. Nc3 {[%emt 0:00:07]} Nc6 {[%emt 0:00:12]} 6. Nxc6 {[%emt 0:04:47]} bxc6 {[%emt 0:00:23]} 7. e5 {[%emt 0:00:04]} Nd5 {[%emt 0:00:07]} 8. Ne4 {[%emt 0:00:03]} Bb7 {[%emt 0:00:07]} 9. Be2 {[%emt 0:00:10]} c5 {[%emt 0:00:36]} 10. O-O {[%emt 0:00:12]} Qc7 {[%emt 0:00:09]} 11. Nd6+ {[%emt 0:00:05]} Bxd6 {[%emt 0:00:06]} 12. exd6 {[%emt 0:00:04]} Qc6 {[%emt 0:00:07]} 13. f3 {[%emt 0:00:06]} e5 {[%emt 0:00:16]} 14. c4 {[%emt 0:02:01]} Nf4 {[%emt 0:02:12]} 15. Bxf4 {[%emt 0:00:06]} exf4 {[%emt 0:00:03]} 16. Qd2 {[%emt 0:00:06]} O-O {[%emt 0:00:24]} 17. Qxf4 {[%emt 0:00:02]} Rae8 {[%emt 0:00:20]} 18. Bd3 {[%emt 0:16:24]} Re6 {[%emt 0:00:55]} 19. Rad1 {[%emt 0:00:07]} g6 {[%emt 0:00:12]} 20. Be4 {[%emt 0:08:19]} Qa6 {[%emt 0:00:36]} 21. Bxb7 {[%emt 0:00:17]} Qxb7 {[%emt 0:00:06]} 22. b3 {[%emt 0:01:02]} Re2 {[%emt 0:04:46]} 23. Rf2 {[%emt 0:02:17]} Rfe8 {[%emt 0:04:42]} 24. Rxe2 {[%emt 0:02:15]} Rxe2 {[%emt 0:00:06]} 25. Rd2 {[%emt 0:00:03]} Re6 {[%emt 0:01:45]} 26. h4 {[%emt 0:04:05]} h5 {[%emt 0:03:33]} 27. Rd5 {[%emt 0:11:36]} Qb6 {[%emt 0:29:13]} 28. Qd2 {[%emt 0:04:09]} Qd8 {[%emt 0:02:10]} 29. Qg5 {[%emt 0:03:47]} Qa5 {[%emt 0:06:14]} 30. Kh2 {[%emt 0:06:11]} Qe1 {[%emt 0:05:56]} 31. Rxc5 {[%emt 0:02:49]} Re2 {[%emt 0:06:09]} 32. Rf5 {[%emt 0:18:25]} Re6 {[%emt 0:10:35]} 33. c5 {[%emt 0:09:55]} Kg7 {[%emt 0:00:28]} 34. Rd5 {[%emt 0:01:32]} Qa1 {[%emt 0:02:58]} 35. Qd2 {[%emt 0:01:25]} Kh7 {[%emt 0:02:13]} 36. c6 {[%emt 0:03:52]} Re1 {[%emt 0:00:09]} 37. cxd7 {[%emt 0:00:04]} Rh1+ {[%emt 0:01:16]} 38. Kg3 {[%emt 0:00:01]} Qg1 {[%emt 0:01:04]} 39. d8=Q {[%emt 0:00:08]} Qh2+ {[%emt 0:00:18]} 40. Kf2 {[%emt 0:00:00]} Qg1+ {[%emt 0:00:00]} 41. Ke2 {[%emt 0:01:13]} Qxg2+ {[%emt 0:02:10]} 42. Ke3 {[%emt 0:01:28]} Qg1+ {[%emt 0:00:39]} 43. Kd3 {[%emt 0:00:46]} Qf1+ {[%emt 0:00:59]} 44. Ke4 {[%emt 0:00:12]} Qb1+ {[%emt 0:04:54]} 45. Rd3 {[%emt 0:00:20]} 1-0

[Event "Srdja Dragasevic Memorial-A 2024"]
[Site "Cetinje"]
[Date "2024.06.23"]
[Round "3.7"]
[White "Holland, James P"]
[Black "Yaksin, Oleg"]
[Result "0-1"]
[ECO "B50"]
[WhiteElo "2252"]
[BlackElo "2389"]
[Annotator "RC"]
[PlyCount "174"]
[EventDate "2024.06.23"]
[EventType "swiss"]
[EventCountry "MNE"]
[SourceTitle "playchess.com"]
[Source "ChessBase"]
[SourceQuality "1"]
[TimeControl "40/5400+30:1800+30"]

1. e4 {[%emt 0:01:20]} c5 {[%emt 0:00:02]} 2. Nf3 {[%emt 0:00:06]} d6 {[%emt 0:00:05]} 3. c3 {[%emt 0:00:45]} Nf6 {[%emt 0:01:19]} 4. Bd3 {[%emt 0:00:55]} Nc6 {[%emt 0:02:53]} 5. Bc2 {[%emt 0:00:09]} Bg4 {[%emt 0:10:05]} 6. h3 {[%emt 0:06:30]} Bh5 {[%emt 0:02:11]} 7. Qe2 {[%emt 0:04:29]} e6 {[%emt 0:02:52]} 8. g4 {[%emt 0:00:44]} Bg6 {[%emt 0:00:04]} 9. d3 {[%emt 0:02:15]} Be7 {[%emt 0:02:58]} 10. Nh4 {[%emt 0:03:24]} Nd7 {[%emt 0:02:25]} 11. Ng2 {[%emt 0:02:31]} e5 {[%emt 0:33:35]} 12. h4 {[%emt 0:17:05]} h6 {[%emt 0:00:35]} 13. f4 {[%emt 0:09:41]} exf4 {[%emt 0:00:23]} 14. Bxf4 {[%emt 0:00:07]} Nde5 {[%emt 0:08:17]} 15. Bb3 {[%emt 0:03:26]} c4 {[%emt 0:13:47]} 16. Bxc4 {[%emt 0:05:52]} Nxc4 {[%emt 0:00:02]} 17. dxc4 {[%emt 0:00:07]} Qb6 {[%emt 0:02:57]} 18. Be3 {[%emt 0:00:35]} Qa5 {[%emt 0:02:11]} 19. Nd2 {[%emt 0:00:06]} O-O {[%emt 0:04:58]} 20. Nf4 {[%emt 0:11:21]} Rae8 {[%emt 0:00:01]} 21. Nd5 {[%emt 0:02:29]} Bd8 {[%emt 0:02:19]} 22. Bf4 {[%emt 0:00:08]} Re6 {[%emt 0:02:47]} 23. h5 {[%emt 0:03:23]} Bxe4 {[%emt 0:00:55]} 24. Nxe4 {[%emt 0:00:05]} Rfe8 {[%emt 0:00:04]} 25. O-O {[%emt 0:03:35]} Rxe4 {[%emt 0:00:08]} 26. Qf3 {[%emt 0:00:46]} Qc5+ {[%emt 0:00:35]} 27. Kh1 {[%emt 0:00:48]} Qxc4 {[%emt 0:00:13]} 28. Ne3 {[%emt 0:01:58]} Qe6 {[%emt 0:03:13]} 29. Nf5 {[%emt 0:00:46]} Bg5 {[%emt 0:00:09]} 30. Bxg5 {[%emt 0:01:14]} hxg5 {[%emt 0:00:02]} 31. h6 {[%emt 0:00:00]} Rf4 {[%emt 0:00:35]} 32. Qd3 {[%emt 0:02:23]} g6 {[%emt 0:02:07]} 33. Ng7 {[%emt 0:10:12]} Qe4+ {[%emt 0:00:37]} 34. Qxe4 {[%emt 0:00:05]} Rexe4 {[%emt 0:00:03]} 35. Rxf4 {[%emt 0:00:32]} Rxf4 {[%emt 0:00:38]} 36. Ne8 {[%emt 0:00:10]} Ne5 {[%emt 0:01:28]} 37. Rg1 {[%emt 0:05:15]} Kh7 {[%emt 0:00:47]} 38. Nxd6 {[%emt 0:00:13]} b6 {[%emt 0:00:29]} 39. Re1 {[%emt 0:01:13]} f6 {[%emt 0:00:33]} 40. Ne8 {[%emt 0:00:00]} Nxg4 {[%emt 0:00:00]} 41. Re7+ {[%emt 0:03:37]} Kxh6 {[%emt 0:03:12]} 42. Kg2 {[%emt 0:00:36]} a5 {[%emt 0:07:19]} 43. Kg3 {[%emt 0:02:55]} b5 {[%emt 0:08:39]} 44. Nd6 {[%emt 0:00:39]} Ne5 {[%emt 0:01:27]} 45. Nxb5 {[%emt 0:00:37]} Rf3+ {[%emt 0:02:31]} 46. Kg2 {[%emt 0:00:08]} Rd3 {[%emt 0:01:21]} 47. Re6 {[%emt 0:07:17]} Kg7 {[%emt 0:01:31]} 48. Rd6 {[%emt 0:00:14]} Re3 {[%emt 0:03:12]} 49. Nd4 {[%emt 0:03:34]} Nd3 {[%emt 0:00:01]} 50. Rd7+ {[%emt 0:01:29]} Kh6 {[%emt 0:00:24]} 51. Rf7 {[%emt 0:00:42]} Nxb2 {[%emt 0:03:29]} 52. Rxf6 {[%emt 0:00:34]} Rxc3 {[%emt 0:00:02]} 53. Ra6 {[%emt 0:04:06]} Nc4 {[%emt 0:00:46]} 54. Rc6 {[%emt 0:03:57]} Ne3+ {[%emt 0:00:01]} 55. Kf3 {[%emt 0:02:16]} g4+ {[%emt 0:01:22]} 56. Kf4 {[%emt 0:00:30]} Ra3 {[%emt 0:01:34]} 57. Ne6 {[%emt 0:02:43]} g3 {[%emt 0:01:57]} 58. Kxg3 {[%emt 0:02:23]} Nd5+ {[%emt 0:00:29]} 59. Kh4 {[%emt 0:01:21]} Nf6 {[%emt 0:00:36]} 60. Rc5 {[%emt 0:01:32]} Rxa2 {[%emt 0:00:24]} 61. Rc8 {[%emt 0:01:59]} g5+ {[%emt 0:00:19]} 62. Kg3 {[%emt 0:00:16]} Ra3+ {[%emt 0:00:03]} 63. Kg2 {[%emt 0:00:11]} Ra2+ {[%emt 0:00:27]} 64. Kg3 {[%emt 0:00:09]} Kg6 {[%emt 0:00:38]} 65. Nf8+ {[%emt 0:00:31]} Kf7 {[%emt 0:00:12]} 66. Rd8 {[%emt 0:01:20]} Re2 {[%emt 0:01:21]} 67. Ra8 {[%emt 0:00:13]} Re8 {[%emt 0:00:16]} 68. Rxa5 {[%emt 0:01:06]} Rxf8 {[%emt 0:00:02]} 69. Kg2 {[%emt 0:00:11]} Kg6 {[%emt 0:00:02]} 70. Kg3 {[%emt 0:00:11]} Rd8 {[%emt 0:00:08]} 71. Ra6 {[%emt 0:00:04]} Rd3+ {[%emt 0:00:11]} 72. Kf2 {[%emt 0:00:04]} Rb3 {[%emt 0:00:10]} 73. Kg2 {[%emt 0:00:04]} Kf5 {[%emt 0:00:15]} 74. Kf2 {[%emt 0:00:07]} Ne4+ {[%emt 0:00:09]} 75. Kg2 {[%emt 0:00:06]} Kf4 {[%emt 0:00:19]} 76. Ra8 {[%emt 0:00:19]} Rb2+ {[%emt 0:00:17]} 77. Kg1 {[%emt 0:00:05]} g4 {[%emt 0:00:12]} 78. Ra3 {[%emt 0:00:16]} Nd2 {[%emt 0:00:46]} 79. Kh1 {[%emt 0:00:14]} Ne4 {[%emt 0:00:21]} 80. Kg1 {[%emt 0:00:12]} Rc2 {[%emt 0:00:26]} 81. Rb3 {[%emt 0:00:06]} Rc3 {[%emt 0:00:24]} 82. Rb4 {[%emt 0:00:12]} Kg3 {[%emt 0:00:25]} 83. Rb1 {[%emt 0:00:26]} Ng5 {[%emt 0:00:08]} 84. Kh1 {[%emt 0:00:12]} Kh3 {[%emt 0:00:41]} 85. Kg1 {[%emt 0:01:04]} g3 {[%emt 0:00:04]} 86. Kf1 {[%emt 0:00:04]} Rc2 {[%emt 0:00:20]} 87. Rb3 {[%emt 0:00:27]} Rf2+ {[%emt 0:00:06]} 0-1

[Event "Srdja Dragasevic Memorial-A 2024"]
[Site "Cetinje"]
[Date "2024.06.23"]
[Round "3.8"]
[White "Mammadov, Zaur"]
[Black "Arora Honi"]
[Result "1-0"]
[ECO "E54"]
[WhiteElo "2426"]
[BlackElo "2082"]
[Annotator "RC"]
[PlyCount "57"]
[EventDate "2024.06.23"]
[EventType "swiss"]
[EventCountry "MNE"]
[SourceTitle "playchess.com"]
[Source "ChessBase"]
[SourceQuality "1"]
[TimeControl "40/5400+30:1800+30"]

1. c4 {[%emt 0:00:42]} c6 {[%emt 0:00:11]} 2. e4 {[%emt 0:02:28]} d5 {[%emt 0:00:08]} 3. exd5 {[%emt 0:00:05]} cxd5 {[%emt 0:00:05]} 4. cxd5 {[%emt 0:00:06]} Nf6 {[%emt 0:00:06]} 5. Nc3 {[%emt 0:00:16]} Nxd5 {[%emt 0:01:12]} 6. Nf3 {[%emt 0:00:08]} e6 {[%emt 0:01:40]} 7. d4 {[%emt 0:00:19]} Nc6 {[%emt 0:00:31]} 8. Bd3 {[%emt 0:00:07]} Be7 {[%emt 0:01:20]} 9. O-O {[%emt 0:00:11]} O-O {[%emt 0:01:01]} 10. Re1 {[%emt 0:00:06]} Nf6 {[%emt 0:06:36]} 11. Bg5 {[%emt 0:05:49]} b6 {[%emt 0:05:37]} 12. Ne5 {[%emt 0:04:16]} Bb7 {[%emt 0:12:35]} 13. Ba6 {[%emt 0:00:48]} Qc8 {[%emt 0:03:54]} 14. Qf3 {[%emt 0:00:11]} Na5 {[%emt 0:07:04]} 15. Bxb7 {[%emt 0:00:41]} Qxb7 {[%emt 0:00:03]} 16. Qxb7 {[%emt 0:00:12]} Nxb7 {[%emt 0:00:03]} 17. Nc6 {[%emt 0:00:09]} Bd6 {[%emt 0:03:27]} 18. Bxf6 {[%emt 0:00:26]} gxf6 {[%emt 0:00:03]} 19. d5 {[%emt 0:00:11]} Rfe8 {[%emt 0:02:00]} 20. Rad1 {[%emt 0:00:05]} e5 {[%emt 0:04:11]} 21. Ne4 {[%emt 0:01:34]} Kg7 {[%emt 0:00:07]} 22. Rd3 {[%emt 0:00:49]} Rg8 {[%emt 0:06:37]} 23. Rf3 {[%emt 0:01:27]} Kf8 {[%emt 0:03:44]} 24. Nxf6 {[%emt 0:00:11]} Rg6 {[%emt 0:00:17]} 25. Nd7+ {[%emt 0:02:29]} Kg8 {[%emt 0:00:08]} 26. Ndxe5 {[%emt 0:00:54]} Re8 {[%emt 0:00:09]} 27. Rfe3 {[%emt 0:01:49]} Rg5 {[%emt 0:00:24]} 28. h4 {[%emt 0:00:23]} Rh5 {[%emt 0:00:40]} 29. Rg3+ {[%emt 0:00:09]} 1-0

[Event "Srdja Dragasevic Memorial-A 2024"]
[Site "Cetinje"]
[Date "2024.06.23"]
[Round "3.9"]
[White "Engin, Onur Cinar"]
[Black "Kosic, Dragan"]
[Result "0-1"]
[ECO "B22"]
[WhiteElo "2114"]
[BlackElo "2382"]
[Annotator "RC"]
[PlyCount "78"]
[EventDate "2024.06.23"]
[EventType "swiss"]
[EventCountry "MNE"]
[SourceTitle "playchess.com"]
[Source "ChessBase"]
[SourceQuality "1"]
[TimeControl "40/5400+30:1800+30"]

1. e4 {[%emt 0:00:06]} c5 {[%emt 0:13:06]} 2. c3 {[%emt 0:00:38]} Nf6 {[%emt 0:00:19]} 3. e5 {[%emt 0:00:08]} Nd5 {[%emt 0:00:04]} 4. Nf3 {[%emt 0:00:11]} e6 {[%emt 0:00:07]} 5. d4 {[%emt 0:00:22]} cxd4 {[%emt 0:00:05]} 6. cxd4 {[%emt 0:00:05]} d6 {[%emt 0:00:05]} 7. a3 {[%emt 0:01:14]} Be7 {[%emt 0:02:22]} 8. Bd3 {[%emt 0:00:53]} Nc6 {[%emt 0:01:26]} 9. O-O {[%emt 0:01:13]} Bd7 {[%emt 0:02:25]} 10. Bd2 {[%emt 0:09:20]} O-O {[%emt 0:08:14]} 11. Nc3 {[%emt 0:07:15]} Nxc3 {[%emt 0:07:10]} 12. Bxc3 {[%emt 0:00:20]} d5 {[%emt 0:00:21]} 13. Re1 {[%emt 0:09:24]} Qb6 {[%emt 0:05:12]} 14. h4 {[%emt 0:15:39]} f5 {[%emt 0:02:14]} 15. exf6 {[%emt 0:01:51]} gxf6 {[%emt 0:04:15]} 16. h5 {[%emt 0:10:51]} Rf7 {[%emt 0:02:23]} 17. Nh4 {[%emt 0:06:27]} Bd6 {[%emt 0:01:25]} 18. Qd2 {[%emt 0:03:35]} Qc7 {[%emt 0:01:25]} 19. b4 {[%emt 0:03:41]} Bf4 {[%emt 0:01:46]} 20. Qd1 {[%emt 0:02:50]} Rg7 {[%emt 0:02:03]} 21. Ra2 {[%emt 0:02:32]} a6 {[%emt 0:01:17]} 22. Rae2 {[%emt 0:09:07]} Qd6 {[%emt 0:00:40]} 23. Bb1 {[%emt 0:01:48]} Kh8 {[%emt 0:01:31]} 24. Qd3 {[%emt 0:01:03]} Bg5 {[%emt 0:05:07]} 25. Nf3 {[%emt 0:01:06]} Bh6 {[%emt 0:00:18]} 26. Bd2 {[%emt 0:01:49]} Bxd2 {[%emt 0:02:38]} 27. Qxd2 {[%emt 0:00:02]} Rag8 {[%emt 0:00:19]} 28. Qh6 {[%emt 0:02:44]} Nxd4 {[%emt 0:04:32]} 29. Nh4 {[%emt 0:01:53]} Nxe2+ {[%emt 0:06:18]} 30. Rxe2 {[%emt 0:00:01]} Qf8 {[%emt 0:00:32]} 31. Kh1 {[%emt 0:02:54]} f5 {[%emt 0:08:08]} 32. Rxe6 {[%emt 0:02:35]} Bxe6 {[%emt 0:04:29]} 33. Qxe6 {[%emt 0:00:02]} Qe7 {[%emt 0:14:44]} 34. Qxe7 {[%emt 0:01:04]} Rxe7 {[%emt 0:00:00]} 35. Bxf5 {[%emt 0:00:22]} Re2 {[%emt 0:00:00]} 36. Kg1 {[%emt 0:00:31]} Ra2 {[%emt 0:00:00]} 37. Be6 {[%emt 0:01:40]} Ra1+ {[%emt 0:00:00]} 38. Kh2 {[%emt 0:00:05]} Rd8 {[%emt 0:00:00]} 39. h6 {[%emt 0:00:43]} Rd6 {[%emt 0:00:00]} 0-1

[Event "Srdja Dragasevic Memorial-A 2024"]
[Site "Cetinje"]
[Date "2024.06.23"]
[Round "3.10"]
[White "Abdulkarimli, Eljan"]
[Black "Damljanovic, Branko"]
[Result "0-1"]
[ECO "C02"]
[WhiteElo "2124"]
[BlackElo "2364"]
[Annotator "RC"]
[PlyCount "82"]
[EventDate "2024.06.23"]
[EventType "swiss"]
[EventCountry "MNE"]
[SourceTitle "playchess.com"]
[Source "ChessBase"]
[SourceQuality "1"]
[TimeControl "40/5400+30:1800+30"]

1. e4 {[%emt 0:00:42]} c5 {[%emt 0:00:30]} 2. c3 {[%emt 0:01:12]} e6 {[%emt 0:01:23]} 3. d4 {[%emt 0:01:12]} d5 {[%emt 0:00:08]} 4. e5 {[%emt 0:01:00]} Nc6 {[%emt 0:01:03]} 5. Nf3 {[%emt 0:00:52]} Bd7 {[%emt 0:00:13]} 6. Na3 {[%emt 0:01:54]} Rc8 {[%emt 0:11:35]} 7. Nc2 {[%emt 0:01:21]} cxd4 {[%emt 0:12:55]} 8. cxd4 {[%emt 0:15:13]} Nb4 {[%emt 0:03:56]} 9. Ne3 {[%emt 0:04:24]} Qb6 {[%emt 0:06:32]} 10. a3 {[%emt 0:05:13]} Nc6 {[%emt 0:00:02]} 11. b4 {[%emt 0:01:27]} f5 {[%emt 0:11:51]} 12. g4 {[%emt 0:10:44]} fxg4 {[%emt 0:04:55]} 13. Nxg4 {[%emt 0:00:30]} Nge7 {[%emt 0:00:27]} 14. Ne3 {[%emt 0:07:34]} Nd8 {[%emt 0:02:47]} 15. Bd3 {[%emt 0:02:55]} Nf7 {[%emt 0:02:11]} 16. Bb2 {[%emt 0:08:35]} Ng6 {[%emt 0:04:42]} 17. Ng2 {[%emt 0:03:40]} a5 {[%emt 0:05:14]} 18. b5 {[%emt 0:01:26]} Bxb5 {[%emt 0:00:20]} 19. Qb3 {[%emt 0:00:52]} Rc4 {[%emt 0:00:07]} 20. Bxc4 {[%emt 0:05:30]} dxc4 {[%emt 0:01:52]} 21. Qe3 {[%emt 0:02:31]} Bc6 {[%emt 0:00:57]} 22. Bc3 {[%emt 0:00:29]} Bd5 {[%emt 0:01:08]} 23. Rg1 {[%emt 0:03:28]} Be7 {[%emt 0:17:27]} 24. h4 {[%emt 0:01:17]} Nh6 {[%emt 0:01:39]} 25. h5 {[%emt 0:03:41]} Nf5 {[%emt 0:00:04]} 26. Qe2 {[%emt 0:01:03]} Qc6 {[%emt 0:00:36]} 27. Nd2 {[%emt 0:01:22]} Bxg2 {[%emt 0:01:31]} 28. hxg6 {[%emt 0:14:23]} Bd5 {[%emt 0:00:09]} 29. Nf1 {[%emt 0:00:00]} Nh4 {[%emt 0:04:02]} 30. Nd2 {[%emt 0:00:00]} Nxg6 {[%emt 0:00:03]} 31. Qh5 {[%emt 0:00:00]} O-O {[%emt 0:01:04]} 32. Rg3 {[%emt 0:00:00]} Nf4 {[%emt 0:00:43]} 33. Qg4 {[%emt 0:00:00]} g5 {[%emt 0:00:17]} 34. f3 {[%emt 0:00:42]} b5 {[%emt 0:02:36]} 35. Kf2 {[%emt 0:01:42]} b4 {[%emt 0:01:42]} 36. Rh1 {[%emt 0:00:38]} bxc3 {[%emt 0:00:17]} 37. Qh4 {[%emt 0:00:31]} Rf7 {[%emt 0:00:08]} 38. Rb1 {[%emt 0:00:45]} Ng6 {[%emt 0:01:39]} 39. Qh5 {[%emt 0:00:39]} cxd2 {[%emt 0:00:24]} 40. Rh3 {[%emt 0:00:00]} Qc7 {[%emt 0:00:00]} 41. Rbh1 {[%emt 0:01:05]} Nf4 {[%emt 0:02:41]} 0-1

[Event "Srdja Dragasevic Memorial-A 2024"]
[Site "Cetinje"]
[Date "2024.06.23"]
[Round "3.11"]
[White "Sukovic, Andrej"]
[Black "Slugin, Alexander"]
[Result "1-0"]
[ECO "B55"]
[WhiteElo "2350"]
[BlackElo "2157"]
[Annotator "RC"]
[PlyCount "53"]
[EventDate "2024.06.23"]
[EventType "swiss"]
[EventCountry "MNE"]
[SourceTitle "playchess.com"]
[Source "ChessBase"]
[SourceQuality "1"]
[TimeControl "40/5400+30:1800+30"]

1. e4 {[%emt 0:09:57]} c5 {[%emt 0:00:44]} 2. Nf3 {[%emt 0:00:09]} d6 {[%emt 0:00:06]} 3. d4 {[%emt 0:00:04]} cxd4 {[%emt 0:00:04]} 4. Nxd4 {[%emt 0:00:05]} Nf6 {[%emt 0:00:04]} 5. f3 {[%emt 0:01:09]} e5 {[%emt 0:01:43]} 6. Nb3 {[%emt 0:00:07]} d5 {[%emt 0:00:46]} 7. Bg5 {[%emt 0:00:06]} Be6 {[%emt 0:00:37]} 8. Bxf6 {[%emt 0:00:10]} gxf6 {[%emt 0:00:09]} 9. exd5 {[%emt 0:00:06]} Bxd5 {[%emt 0:00:31]} 10. Nc3 {[%emt 0:06:36]} Bb4 {[%emt 0:00:08]} 11. Qd3 {[%emt 0:02:32]} Nc6 {[%emt 0:00:21]} 12. O-O-O {[%emt 0:00:29]} Bxb3 {[%emt 0:02:58]} 13. axb3 {[%emt 0:17:00]} Qa5 {[%emt 0:12:05]} 14. Qd7+ {[%emt 0:04:16]} Kf8 {[%emt 0:00:16]} 15. Bc4 {[%emt 0:00:28]} Ne7 {[%emt 0:02:52]} 16. Kb1 {[%emt 0:00:38]} Kg7 {[%emt 0:00:58]} 17. Qg4+ {[%emt 0:04:50]} Ng6 {[%emt 0:04:38]} 18. Rd5 {[%emt 0:04:05]} Bxc3 {[%emt 0:01:25]} 19. Rxa5 {[%emt 0:00:56]} Bxa5 {[%emt 0:00:06]} 20. Rd1 {[%emt 0:01:32]} Rad8 {[%emt 0:00:30]} 21. Rd7 {[%emt 0:01:06]} Rhf8 {[%emt 0:00:25]} 22. Rxb7 {[%emt 0:08:32]} Rd4 {[%emt 0:00:12]} 23. Qe6 {[%emt 0:02:25]} Nh8 {[%emt 0:01:13]} 24. g3 {[%emt 0:05:09]} Bb6 {[%emt 0:03:15]} 25. h4 {[%emt 0:01:18]} h5 {[%emt 0:00:34]} 26. Qf5 {[%emt 0:00:25]} Rfd8 {[%emt 0:00:30]} 27. Bd3 {[%emt 0:01:10]} 1-0

[Event "Srdja Dragasevic Memorial-A 2024"]
[Site "Cetinje"]
[Date "2024.06.23"]
[Round "3.12"]
[White "Guleryuz, Kuzey"]
[Black "Pecurica, Milos"]
[Result "0-1"]
[ECO "C58"]
[WhiteElo "1971"]
[BlackElo "2338"]
[Annotator "RC"]
[PlyCount "116"]
[EventDate "2024.06.23"]
[EventType "swiss"]
[EventCountry "MNE"]
[SourceTitle "playchess.com"]
[Source "ChessBase"]
[SourceQuality "1"]
[TimeControl "40/5400+30:1800+30"]

1. e4 {[%emt 0:00:05]} e5 {[%emt 0:00:20]} 2. Nf3 {[%emt 0:00:05]} Nc6 {[%emt 0:00:08]} 3. Bc4 {[%emt 0:00:07]} Nf6 {[%emt 0:00:31]} 4. Ng5 {[%emt 0:00:13]} d5 {[%emt 0:00:12]} 5. exd5 {[%emt 0:00:02]} Na5 {[%emt 0:00:10]} 6. Bb5+ {[%emt 0:00:05]} c6 {[%emt 0:00:24]} 7. dxc6 {[%emt 0:00:06]} bxc6 {[%emt 0:00:02]} 8. Bd3 {[%emt 0:00:07]} Nd5 {[%emt 0:00:34]} 9. Nf3 {[%emt 0:00:07]} Bd6 {[%emt 0:00:10]} 10. O-O {[%emt 0:00:25]} O-O {[%emt 0:00:17]} 11. Re1 {[%emt 0:00:18]} Re8 {[%emt 0:07:11]} 12. Nc3 {[%emt 0:08:46]} Rb8 {[%emt 0:10:55]} 13. Bf1 {[%emt 0:15:30]} f5 {[%emt 0:18:58]} 14. d3 {[%emt 0:10:48]} Nf6 {[%emt 0:03:25]} 15. g3 {[%emt 0:15:57]} c5 {[%emt 0:01:29]} 16. Bg2 {[%emt 0:01:59]} h6 {[%emt 0:03:29]} 17. Nd2 {[%emt 0:06:33]} Be6 {[%emt 0:07:23]} 18. b3 {[%emt 0:01:15]} Bf7 {[%emt 0:09:06]} 19. Bb2 {[%emt 0:04:32]} Qc7 {[%emt 0:01:58]} 20. Rb1 {[%emt 0:02:55]} Nc6 {[%emt 0:02:38]} 21. Nc4 {[%emt 0:04:19]} Nd4 {[%emt 0:00:28]} 22. Ne2 {[%emt 0:01:49]} Bh5 {[%emt 0:01:59]} 23. Bxd4 {[%emt 0:00:06]} cxd4 {[%emt 0:00:41]} 24. Nxd6 {[%emt 0:00:41]} Qxd6 {[%emt 0:00:05]} 25. Qd2 {[%emt 0:01:33]} Rbc8 {[%emt 0:01:30]} 26. f4 {[%emt 0:03:48]} Bxe2 {[%emt 0:08:20]} 27. Rxe2 {[%emt 0:00:47]} Ng4 {[%emt 0:01:05]} 28. fxe5 {[%emt 0:04:31]} Rxe5 {[%emt 0:00:16]} 29. Rxe5 {[%emt 0:02:30]} Qxe5 {[%emt 0:00:09]} 30. b4 {[%emt 0:02:11]} Ne3 {[%emt 0:00:58]} 31. Rc1 {[%emt 0:01:19]} f4 {[%emt 0:00:51]} 32. gxf4 {[%emt 0:00:59]} Qxf4 {[%emt 0:00:06]} 33. Be4 {[%emt 0:00:20]} Rxc2 {[%emt 0:01:22]} 34. Qxc2 {[%emt 0:00:19]} Nxc2 {[%emt 0:00:52]} 35. Rxc2 {[%emt 0:00:03]} Qe3+ {[%emt 0:00:58]} 36. Kg2 {[%emt 0:00:36]} Qg5+ {[%emt 0:01:58]} 37. Kf1 {[%emt 0:01:10]} Qg4 {[%emt 0:01:44]} 38. Kf2 {[%emt 0:02:07]} h5 {[%emt 0:00:49]} 39. Rc4 {[%emt 0:01:33]} Qf4+ {[%emt 0:00:30]} 40. Kg2 {[%emt 0:00:00]} g5 {[%emt 0:00:00]} 41. a4 {[%emt 0:02:23]} Qd2+ {[%emt 0:04:57]} 42. Kg3 {[%emt 0:01:27]} h4+ {[%emt 0:04:16]} 43. Kg4 {[%emt 0:00:16]} Qxh2 {[%emt 0:00:34]} 44. Kxg5 {[%emt 0:00:07]} Qg3+ {[%emt 0:01:58]} 45. Kf6 {[%emt 0:00:48]} Qd6+ {[%emt 0:00:33]} 46. Kf5 {[%emt 0:02:16]} h3 {[%emt 0:01:09]} 47. Rc6 {[%emt 0:02:05]} Qd7+ {[%emt 0:01:20]} 48. Kf6 {[%emt 0:01:36]} h2 {[%emt 0:01:55]} 49. b5 {[%emt 0:06:50]} Qf7+ {[%emt 0:02:51]} 50. Ke5 {[%emt 0:03:33]} Qh5+ {[%emt 0:03:48]} 51. Kxd4 {[%emt 0:01:02]} h1=Q {[%emt 0:00:14]} 52. Bxh1 {[%emt 0:00:02]} Qxh1 {[%emt 0:00:09]} 53. Rc7 {[%emt 0:00:17]} Qa1+ {[%emt 0:00:38]} 54. Kd5 {[%emt 0:01:27]} Qxa4 {[%emt 0:00:17]} 55. Rb7 {[%emt 0:00:01]} Kf8 {[%emt 0:02:31]} 56. d4 {[%emt 0:00:06]} Ke8 {[%emt 0:00:29]} 57. Kc5 {[%emt 0:00:24]} Qa3+ {[%emt 0:00:34]} 58. Kc6 {[%emt 0:00:28]} Qc3+ {[%emt 0:00:12]} 0-1